bitfinex-derivatives/quotes_SOLF0:USTF0_20241026
["timestamp","ask_amount","ask_price","bid_price","bid_amount"]
[1729954938295,5.14,167.94,167.86,1.3127]
[1729954938794,2.9789,168.02,167.96,2.9798]
[1729954938987,2.9789,168.02,167.97,5.14]
[1729954939394,25.69475712,168.08,167.97,5.14]
[1729954940192,2.9789,168.03,167.98,2.9796]
[1729954941397,20.55475712,168.08,167.97,5.14]
[1729954941902,2.9787,168.03,167.98,2.9796]
[1729954942095,20.55475712,168.08,167.97,5.14]
[1729954942497,2.9784,168.05,167.99,2.9793]
[1729954942899,2.9784,168.05,167.97,5.14]
[1729954943098,2.9786,168.04,168.0,2.9792]
[1729954943699,20.55475712,168.08,168.0,2.9792]
[1729954943900,2.9786,168.04,167.99,2.9794]
[1729954946506,20.55475712,168.08,167.99,2.9794]
[1729954946709,2.9787,168.03,167.99,2.9794]
[1729954947211,2.9787,168.03,167.98,2.9796]
[1729954948704,20.55475712,168.08,167.97,5.14]
[1729954948897,21.76895712,168.1,167.98,20.55475712]
[1729954949103,25.69475712,168.13,167.98,20.55475712]
[1729954949403,2.9778,168.09,168.01,2.979]
[1729954949610,25.69475712,168.13,168.02,5.14]
[1729954950010,2.9783,168.06,168.02,8.1189]
[1729954950213,2.9783,168.06,168.03,5.14]
[1729954951106,2.9783,168.06,168.04,5.14]
[1729954952813,2.9781,168.07,168.04,5.14]
[1729954953208,20.55475712,168.13,168.04,5.14]
[1729954953409,2.9774,168.11,168.04,5.14]
[1729954953608,1.2716,168.14,168.06,2.9782]
[1729954954721,2.9777,168.09,168.05,1.3235]
[1729954954917,20.55475712,168.13,168.05,6.4635]
[1729954955218,2.9781,168.07,168.05,6.4635]
[1729954955516,20.55475712,168.13,168.05,6.4635]
[1729954956223,2.9774,168.11,168.05,9.4418]
[1729954956513,20.55475712,168.13,168.05,9.4418]
[1729954956715,2.9774,168.11,168.05,4.3018]
[1729954956917,1.2716,168.14,168.06,8.1182]
[1729954957814,2.9775,168.1,168.06,8.1182]
[1729954958411,2.9775,168.1,168.06,5.14]
[1729954958616,2.9774,168.11,168.07,2.9779]
[1729954959012,2.9774,168.11,168.06,5.14]
[1729954959320,2.9774,168.11,168.08,2.9777]
[1729954960111,2.977,168.13,168.06,5.14]
[1729954960321,20.55475712,168.13,168.06,5.14]
[1729954960812,2.978,168.08,168.05,6.4635]
[1729954961215,2.978,168.08,168.05,1.3235]
[1729954961421,2.978,168.08,168.05,6.4635]
[1729954963512,5.14,168.18,168.05,6.4635]
[1729954963718,5.14,168.18,168.05,9.4418]
[1729954963922,5.14,168.18,168.05,6.4635]
[1729954964222,5.14,168.18,168.06,2.9781]
[1729954964623,5.14,168.18,168.05,6.4635]
[1729954964824,2.9775,168.11,168.07,2.978]
[1729954965623,5.14,168.18,168.08,2.9777]
[1729954965824,5.14,168.18,168.09,5.14]
[1729954966417,2.977,168.13,168.09,8.1175]
[1729954968818,21.87685712,168.19,168.09,5.14]
[1729954969018,21.87685712,168.19,168.09,8.1177]
[1729954969425,2.9764,168.16,168.09,8.1177]
[1729954969624,21.87685712,168.19,168.09,8.1177]
[1729954970225,2.9771,168.13,168.09,8.1177]
[1729954970725,21.87685712,168.19,168.1,2.9775]
[1729954970914,2.9771,168.13,168.1,2.9775]
[1729954971421,2.9771,168.13,168.1,5.14]
[1729954971925,1.3221,168.19,168.1,5.14]
[1729954972121,2.9769,168.14,168.1,5.14]
[1729954972835,2.9769,168.14,168.11,2.9773]
[1729954974429,2.9766,168.16,168.12,2.977]
[1729954974733,2.9766,168.16,168.12,4.3006]
[1729954975431,2.9766,168.16,168.13,2.977]
[1729954975630,2.9766,168.16,168.14,4.94]
[1729954976220,2.977,168.13,168.12,1.3236]
[1729954976434,12.87159536,168.17,168.1,4.94]
[1729954976931,2.977,168.13,168.1,4.94]
[1729954977836,12.87159536,168.17,168.09,4.94]
[1729954978219,12.87159536,168.15,168.05,12.87159536]
[1729954978424,12.87159536,168.15,168.06,4.94]
[1729954978830,2.9778,168.09,168.06,4.94]
[1729954979239,12.87159536,168.15,168.06,4.94]
[1729954979437,2.9775,168.11,168.06,4.94]
[1729954979728,2.9775,168.11,168.06,7.9181]
[1729954979933,2.9774,168.11,168.06,4.94]
[1729954980321,4.94,168.15,168.04,3.7205]
[1729954980527,2.9781,168.07,168.04,8.6605]
[1729954981233,2.9779,168.08,168.04,8.6605]
[1729954983234,25.52049177,168.11,168.01,4.94]
[1729954983627,1.3099,168.1,168.01,4.94]
[1729954983828,2.9786,168.04,167.98,20.58049177]
[1729954984025,2.9786,168.04,167.99,4.94]
[1729954984230,2.9786,168.04,167.96,3.7684]
[1729954984231,4.94,168.07,167.96,3.7684]
[1729954984454,4.94,168.07,167.86,5.9633]
[1729954984455,20.58049177,168.03,167.93,4.94]
[1729954984656,4.94,168.03,167.93,4.94]
[1729954984857,20.58049177,168.02,167.93,4.94]
[1729954985167,20.58049177,168.0,167.89,3.7232]
[1729954985381,4.94,167.99,167.9,4.94]
[1729954986061,4.94,167.99,167.91,20.58049177]
[1729954986259,4.94,168.02,167.91,20.58049177]
[1729954987064,4.94,168.02,167.89,3.7232]
[1729954987065,25.52049177,168.02,167.89,3.7232]
[1729954987264,25.52049177,168.02,167.9,4.94]
[1729954987453,2.9799,167.97,167.91,2.9807]
[1729954988064,2.9796,167.98,167.93,2.9805]
[1729954988269,4.94,168.02,167.91,20.58049177]
[1729954989073,4.94,168.03,167.94,20.58049177]
[1729954989373,4.94,168.04,167.94,25.52049177]
[1729954990168,23.8822,168.18,167.97,20.58049177]
[1729954990358,6.2584,168.12,167.99,20.58049177]
[1729954990555,6.2584,168.12,168.0,4.94]
[1729954990755,6.2584,168.12,168.03,2.9786]
[1729954990970,6.2584,168.12,168.0,4.94]
[1729954991365,2.9782,168.07,168.0,4.94]
[1729954991971,5.95,168.25,168.02,20.58049177]
[1729954992270,1.3184,168.17,168.02,20.58049177]
[1729954992473,4.94,168.16,168.02,20.58049177]
[1729954992663,2.9769,168.14,168.08,2.9777]
[1729954993457,4.94,168.16,168.06,4.94]
[1729954993667,4.94,168.16,168.07,2.9779]
[1729954993865,20.58049177,168.15,168.03,4.94]
[1729954994058,2.9776,168.1,168.05,2.9783]
[1729954994696,2.9778,168.09,168.04,2.9785]
[1729954995072,2.9778,168.09,168.05,2.9784]
[1729954996062,2.9778,168.09,168.03,4.94]
[1729954996359,2.9778,168.09,168.04,2.9785]
[1729954997069,2.9775,168.1,168.05,2.9783]
[1729954997271,4.94,168.12,168.03,4.94]
[1729954997663,2.9774,168.11,168.06,2.9782]
[1729954997867,4.94,168.12,168.03,4.94]
[1729954998060,25.52049177,168.15,168.03,4.94]
[1729954998265,25.52049177,168.15,168.06,2.978]
[1729954998464,1.3184,168.17,168.03,4.94]
[1729954998659,4.94,168.16,168.05,20.58049177]
[1729954998858,4.94,168.16,168.06,3.7352]
[1729954999062,4.94,168.16,168.07,4.94]
[1729954999672,4.94,168.19,168.1,20.58049177]
[1729954999876,57.9,168.22,168.1,20.58049177]
[1729955000171,2.9765,168.16,168.12,2.977]
[1729955000565,4.94,168.21,168.1,20.58049177]
[1729955001671,57.9,168.22,168.11,4.94]
[1729955001876,4.94,168.21,168.11,4.94]
[1729955002258,1.2246,168.24,168.13,20.58049177]
[1729955002567,63.8276,168.31,168.13,20.58049177]
[1729955002864,4.94,168.26,168.14,3.7913]
[1729955003060,4.94,168.26,168.17,2.9762]
[1729955003457,253.08521256,168.27,168.16,20.58049177]
[1729955003660,2.9751,168.24,168.2,2.9756]
[1729955004343,2.9742,168.29,168.21,20.58049177]
[1729955004550,4.94,168.32,168.22,1.3017]
[1729955004740,4.94,168.32,168.22,2.5528]
[1729955004937,2.9743,168.29,168.24,2.975]
[1729955005251,2.9743,168.29,168.22,2.5528]
[1729955005252,25.52049177,168.32,168.22,1.3017]
[1729955005447,2.9749,168.25,168.22,1.3017]
[1729955006341,25.52049177,168.32,168.22,1.3017]
[1729955006837,2.9741,168.29,168.23,2.975]
[1729955007059,25.52049177,168.32,168.23,2.975]
[1729955007549,2.9745,168.27,168.23,2.975]
[1729955008147,2.9748,168.26,168.22,4.2771]
[1729955008450,25.52049177,168.32,168.22,1.3017]
[1729955010553,4.94,168.32,168.22,1.3017]
[1729955010755,25.52049177,168.32,168.22,1.3017]
[1729955010955,2.975,168.25,168.22,1.3017]
[1729955011658,2.9754,168.23,168.18,20.58049177]
[1729955011847,4.96,168.28,168.17,4.96]
[1729955012046,4.96,168.28,168.18,2.976]
[1729955012253,17.81938997,168.28,168.18,2.976]
[1729955012949,2.9753,168.23,168.19,2.9758]
[1729955013258,17.81938997,168.28,168.17,17.81938997]
[1729955013458,2.9749,168.25,168.18,2.9759]
[1729955013651,12.85938997,168.25,168.17,4.96]
[1729955013851,12.85938997,168.2,168.11,12.85938997]
[1729955014053,2.9767,168.15,168.11,17.81938997]
[1729955014251,4.96,168.21,168.11,4.96]
[1729955015144,4.96,168.21,168.12,2.9771]
[1729955015662,4.96,168.21,168.11,7.9373]
[1729955015959,4.96,168.21,168.09,8.6919]
[1729955016259,4.96,168.21,168.12,20.5916049]
[1729955016459,4.96,168.21,168.13,4.96]
[1729955017353,2.9759,168.19,168.13,4.96]
[1729955017946,20.5916049,168.23,168.09,24.3235049]
[1729955018155,4.96,168.22,168.09,8.6919]
[1729955018350,4.96,168.22,168.1,2.9773]
[1729955018555,2.9766,168.16,168.09,8.6919]
[1729955019159,4.96,168.22,168.09,8.6919]
[1729955019160,2.9762,168.18,168.1,20.5916049]
[1729955019361,4.96,168.22,168.1,20.5916049]
[1729955019657,4.96,168.22,168.09,11.6694]
[1729955019865,2.977,168.13,168.09,6.7094]
[1729955020267,4.96,168.17,168.09,3.7319]
[1729955020458,2.9766,168.15,168.1,2.9774]
[1729955020758,4.96,168.17,168.09,3.7319]
[1729955020965,4.96,168.17,168.09,1.2686]
[1729955021471,4.96,168.17,168.07,4.96]
[1729955021472,4.96,168.17,168.07,2.978]
[1729955021855,4.96,168.17,168.05,1.2361]
[1729955022159,2.9774,168.11,168.05,6.1961]
[1729955023367,4.96,168.17,168.08,20.5916049]
[1729955023561,4.96,168.18,168.08,20.5916049]
[1729955023766,4.96,168.18,168.05,26.7877049]
[1729955023967,25.5516049,168.18,168.05,26.7877049]
[1729955024461,2.9773,168.12,168.07,2.978]
[1729955024657,25.5516049,168.18,168.05,26.7877049]
[1729955025670,2.9773,168.12,168.05,26.7877049]
[1729955026262,2.9773,168.12,168.07,2.978]
[1729955026565,2.9773,168.12,168.05,26.7877049]
[1729955027165,2.9773,168.12,168.07,2.978]
[1729955027460,4.96,168.18,168.05,26.7877049]
[1729955027665,4.96,168.18,168.09,2.9776]
[1729955027857,4.96,168.18,168.08,20.5916049]
[1729955028257,4.96,168.2,168.14,2.9767]
[1729955028458,20.5916049,168.26,168.14,2.9767]
[1729955028667,4.96,168.25,168.1,20.5916049]
[1729955028963,4.96,168.25,168.15,2.9766]
[1729955029168,2.9762,168.18,168.15,2.9766]
[1729955030065,1.3187,168.27,168.16,20.5916049]
[1729955030369,4.96,168.25,168.16,20.5916049]
[1729955030559,2.9755,168.22,168.18,2.9759]
[1729955031559,4.96,168.25,168.18,2.9759]
[1729955031970,2.9755,168.22,168.18,2.9759]
[1729955032874,2.9753,168.23,168.19,2.9758]
[1729955033064,4.96,168.25,168.16,20.5916049]
[1729955033471,2.9756,168.21,168.18,2.976]
[1729955036374,12.86234681,168.24,168.15,1.286]
[1729955037168,12.86234681,168.24,168.15,4.2626]
[1729955037778,2.976,168.19,168.15,4.2626]
[1729955038571,2.976,168.19,168.16,2.9764]
[1729955041884,12.86234681,168.24,168.13,15.83924681]
[1729955042285,12.86234681,168.22,168.13,15.83924681]
[1729955042584,2.9764,168.17,168.14,2.9768]
[1729955042879,2.9759,168.2,168.15,12.86234681]
[1729955043074,4.92,168.22,168.15,12.86234681]
[1729955044284,4.92,168.22,168.16,2.9764]
[1729955045176,2.976,168.19,168.16,2.9764]
[1729955045384,4.92,168.22,168.15,12.86234681]
[1729955045984,4.92,168.22,168.15,15.83884681]
[1729955046279,4.92,168.22,168.15,2.9765]
[1729955046485,2.976,168.19,168.16,2.9764]
[1729955049093,4.92,168.22,168.13,3.8086]
[1729955049495,2.9758,168.2,168.14,2.9767]
[1729955049693,17.78234681,168.22,168.13,1.2433]
[1729955049899,12.86234681,168.18,168.08,17.78234681]
[1729955050097,4.92,168.17,168.09,2.9775]
[1729955050599,2.9775,168.11,168.07,2.978]
[1729955050891,17.78234681,168.13,168.04,3.7807]
[1729955051296,2.9779,168.08,168.05,2.9783]
[1729955051490,17.78234681,168.13,168.04,3.7807]
[1729955051691,1.2537,168.17,168.06,12.86234681]
[1729955051887,4.92,168.16,168.06,12.86234681]
[1729955052086,17.78234681,168.16,168.06,12.86234681]
[1729955052794,2.9772,168.12,168.08,2.9778]
[1729955053495,4.92,168.15,168.04,3.7807]
[1729955053698,7.8967,168.15,168.11,15.83944681]
[1729955053898,2.9767,168.15,168.11,15.83944681]
[1729955054398,4.92,168.18,168.14,2.9766]
[1729955054399,7.8961,168.18,168.14,2.9766]
[1729955055392,7.8961,168.18,168.15,2.9766]
[1729955055393,4.92,168.18,168.15,2.9766]
[1729955055599,4.92,168.21,168.13,12.86234681]
[1729955056202,2.9763,168.17,168.13,2.9769]
[1729955056502,12.86234681,168.18,168.09,17.78234681]
[1729955056699,4.92,168.17,168.09,17.78234681]
[1729955057404,2.977,168.14,168.1,2.9774]
[1729955057698,12.86234681,168.16,168.06,12.86234681]
[1729955057906,4.92,168.17,168.04,3.7807]
[1729955057907,12.86234681,168.12,168.04,3.7807]
[1729955058092,4.92,168.13,168.04,16.64304681]
[1729955058404,4.92,168.13,168.06,12.86234681]
[1729955058604,4.92,168.16,168.06,12.86234681]
[1729955058901,2.977,168.13,168.09,2.9775]
[1729955059606,4.92,168.16,168.08,12.86234681]
[1729955060200,2.9767,168.15,168.08,12.86234681]
[1729955060796,2.9767,168.15,168.1,2.9774]
[1729955061002,2.9768,168.14,168.1,2.9774]
[1729955061809,2.9768,168.14,168.08,12.86234681]
[1729955061810,2.9767,168.15,168.08,12.86234681]
[1729955062236,12.86234681,168.2,168.1,12.86234681]
[1729955062429,4.92,168.19,168.12,12.86234681]
[1729955062725,14.07764681,168.22,168.12,20.24264681]
[1729955062726,17.78234681,168.22,168.12,20.24264681]
[1729955063131,12.86234681,168.22,168.12,20.24264681]
[1729955063329,2.976,168.19,168.15,2.9765]
[1729955063532,17.78234681,168.22,168.12,20.24264681]
[1729955064131,2.9758,168.2,168.15,2.9764]
[1729955064532,2.9758,168.2,168.12,20.24264681]
[1729955064533,12.86234681,168.26,168.16,17.78234681]
[1729955064730,4.92,168.26,168.16,17.78234681]
[1729955065328,2.9751,168.24,168.2,2.9757]
[1729955065531,4.86,168.27,168.2,2.9757]
[1729955065737,2.9751,168.24,168.2,2.9757]
[1729955066234,2.9751,168.24,168.19,1.1927]
[1729955066235,12.86234681,168.28,168.19,1.1927]
[1729955066434,12.86234681,168.28,168.22,2.9754]
[1729955066435,2.9748,168.25,168.22,2.9754]
[1729955066619,2.9748,168.25,168.19,1.1927]
[1729955066824,2.9752,168.23,168.19,4.1684]
[1729955067229,12.86234681,168.25,168.19,1.1927]
[1729955067432,12.86234681,168.25,168.19,4.1686]
[1729955068024,2.9753,168.23,168.19,4.1686]
[1729955068212,12.86234681,168.25,168.19,4.1686]
[1729955068414,12.86234681,168.25,168.17,2.9761]
[1729955068626,12.86234681,168.23,168.13,1.2244]
[1729955068829,17.72234681,168.23,168.13,6.0844]
[1729955069235,2.9757,168.21,168.13,6.0844]
[1729955070213,2.9757,168.21,168.16,2.9764]
[1729955070412,2.9757,168.21,168.14,12.86234681]
[1729955070808,2.9757,168.21,168.16,2.9763]
[1729955072116,2.9757,168.21,168.17,2.9762]
[1729955073511,4.86,168.23,168.17,2.9762]
[1729955073915,4.86,168.23,168.16,12.86234681]
[1729955074115,2.9754,168.23,168.16,12.86234681]
[1729955074516,2.9754,168.23,168.18,2.9759]
[1729955074818,2.9754,168.23,168.16,12.86234681]
[1729955075019,2.9754,168.23,168.18,2.9759]
[1729955075411,2.9754,168.23,168.16,12.86234681]
[1729955075611,2.9754,168.23,168.18,2.9759]
[1729955077620,4.86,168.26,168.16,12.86234681]
[1729955078023,4.86,168.26,168.19,2.9759]
[1729955078318,2.9753,168.23,168.19,2.9759]
[1729955078623,2.9753,168.23,168.2,2.9757]
[1729955078819,1.2543,168.34,168.18,12.86234681]
[1729955079120,6.1143,168.34,168.25,12.86234681]
[1729955079318,13.23015233,168.36,168.27,12.86234681]
[1729955079518,2.9733,168.34,168.27,12.86234681]
[1729955079823,2.9733,168.34,168.28,1.3201]
[1729955080423,4.86,168.37,168.3,2.9739]
[1729955080620,17.72234681,168.37,168.28,1.3201]
[1729955081014,17.72234681,168.37,168.28,4.2943]
[1729955081209,17.72234681,168.37,168.28,1.3201]
[1729955082217,2.9733,168.34,168.3,2.9739]
[1729955083409,70.70234681,168.46,168.29,12.86234681]
[1729955083410,12.86234681,168.41,168.29,12.86234681]
[1729955083709,4.86,168.4,168.33,2.9733]
[1729955083910,12.86234681,168.39,168.3,1.2888]
[1729955084314,2.9732,168.35,168.3,4.2626]
[1729955084930,12.86234681,168.39,168.3,4.2626]
[1729955085222,12.86234681,168.39,168.28,1.3201]
[1729955085417,12.86234681,168.37,168.28,4.2944]
[1729955085621,2.9736,168.32,168.28,1.3201]
[1729955085817,4.86,168.36,168.28,1.3201]
[1729955086024,4.86,168.36,168.3,2.9739]
[1729955086415,4.86,168.36,168.28,1.3201]
[1729955087230,4.86,168.36,168.28,4.2943]
[1729955087231,2.9737,168.32,168.28,4.2943]
[1729955088427,2.9737,168.32,168.28,1.3201]
[1729955088726,2.9737,168.32,168.29,2.9741]
[1729955089626,4.86,168.36,168.28,1.3201]
[1729955089832,2.9733,168.34,168.3,2.9739]
[1729955090429,2.9731,168.35,168.31,2.9737]
[1729955091225,2.9733,168.34,168.31,2.9737]
[1729955093939,4.86,168.36,168.28,1.3201]
[1729955094240,4.86,168.36,168.31,2.9737]
[1729955094748,2.9734,168.33,168.3,2.9739]
[1729955095136,2.9737,168.32,168.28,4.2943]
[1729955095542,2.9737,168.32,168.28,1.3201]
[1729955096244,2.9737,168.32,168.29,2.9741]
[1729955096544,2.9734,168.34,168.28,1.3201]
[1729955097246,2.9735,168.33,168.3,2.9739]
[1729955099449,2.9739,168.31,168.28,4.2943]
[1729955099649,12.86234681,168.35,168.26,1.1951]
[1729955101042,12.86234681,168.35,168.26,4.1697]
[1729955101240,17.66234681,168.37,168.27,12.86234681]
[1729955102342,2.9735,168.33,168.3,2.9738]
[1729955102947,2.9733,168.34,168.31,2.9737]
[1729955103147,4.8,168.37,168.31,12.86234681]
[1729955103348,12.86234681,168.4,168.31,12.86234681]
[1729955103647,12.86234681,168.4,168.27,4.8]
[1729955103648,2.9725,168.39,168.35,2.973]
[1729955103858,2.9725,168.39,168.34,12.86234681]
[1729955103859,247.93907323,168.42,168.34,12.86234681]
[1729955104050,57.84,168.46,168.36,12.86234681]
[1729955104051,4.8,168.44,168.36,12.86234681]
[1729955104353,2.972,168.42,168.38,2.9725]
[1729955104548,4.8,168.44,168.38,2.9725]
[1729955105050,2.9718,168.43,168.38,2.9725]
[1729955105253,4.8,168.44,168.36,12.86234681]
[1729955105445,12.86234681,168.44,168.36,12.86234681]
[1729955105644,4.8,168.43,168.36,12.86234681]
[1729955105846,2.9723,168.4,168.36,15.83524681]
[1729955106046,17.66234681,168.44,168.36,12.86234681]
[1729955106247,4.8,168.44,168.36,12.86234681]
[1729955106655,2.9722,168.4,168.36,15.83514681]
[1729955108854,4.8,168.44,168.36,12.86234681]
[1729955109554,2.972,168.42,168.38,2.9724]
[1729955111257,1.2445,168.53,168.4,12.86234681]
[1729955111457,4.8,168.52,168.44,12.86234681]
[1729955111754,12.86234681,168.49,168.36,1.3002]
[1729955111965,12.86234681,168.47,168.36,14.16254681]
[1729955112261,4.8,168.46,168.38,12.86234681]
[1729955112761,2.9715,168.44,168.4,2.9721]
[1729955112959,2.9715,168.44,168.38,12.86234681]
[1729955113155,1.2445,168.53,168.4,12.86234681]
[1729955113355,12.86234681,168.49,168.4,12.86234681]
[1729955113555,4.8,168.48,168.4,12.86234681]
[1729955113760,2.9715,168.44,168.4,15.83444681]
[1729955114255,12.86234681,168.47,168.37,4.8]
[1729955114465,2.9722,168.41,168.37,4.8]
[1729955114958,2.9725,168.39,168.35,2.9729]
[1729955115165,2.9725,168.39,168.33,14.09794681]
[1729955115360,4.8,168.44,168.33,14.09794681]
[1729955115566,4.8,168.44,168.37,2.9727]
[1729955116452,4.8,168.44,168.35,12.86234681]
[1729955116654,2.9724,168.39,168.33,14.09794681]
[1729955116859,12.86234681,168.43,168.33,14.09794681]
[1729955117064,2.9718,168.42,168.38,2.9725]
[1729955118168,2.972,168.41,168.38,2.9725]
[1729955118958,7.7717,168.43,168.39,2.9722]
[1729955119160,2.9717,168.43,168.39,2.9722]
[1729955120060,2.9713,168.46,168.42,2.9718]
[1729955122063,12.86234681,168.51,168.41,12.86234681]
[1729955122270,4.8,168.5,168.41,12.86234681]
[1729955122461,4.8,168.5,168.41,14.12754681]
[1729955122769,2.971,168.47,168.41,14.12754681]
[1729955122966,4.8,168.5,168.41,14.12754681]
[1729955123562,2.9706,168.49,168.45,2.9712]
[1729955123761,2.9706,168.49,168.41,14.12754681]
[1729955124169,17.87,168.62,168.41,14.12754681]
[1729955124170,12.86234681,168.6,168.48,12.86234681]
[1729955124463,12.86234681,168.6,168.49,1.2801]
[1729955124676,12.86234681,168.6,168.49,2.5896]
[1729955124862,12.86234681,168.6,168.5,1.3189]
[1729955125366,17.66234681,168.6,168.5,1.3189]
[1729955125562,17.66234681,168.6,168.51,12.86234681]
[1729955125767,14.18224681,168.62,168.54,2.9697]
[1729955126067,14.18224681,168.62,168.53,12.86234681]
[1729955126068,4.8,168.62,168.53,12.86234681]
[1729955126258,2.9688,168.6,168.56,2.9693]
[1729955126463,2.9688,168.6,168.53,12.86234681]
[1729955126964,2.9688,168.6,168.56,2.9693]
[1729955127765,12.86234681,168.64,168.53,12.86234681]
[1729955127971,12.86234681,168.62,168.52,12.86234681]
[1729955128270,12.86234681,168.62,168.55,2.9694]
[1729955128271,2.9687,168.6,168.55,2.9694]
[1729955128571,12.86234681,168.62,168.55,2.9694]
[1729955128761,2.9686,168.61,168.56,2.9693]
[1729955129266,12.86234681,168.64,168.55,2.9695]
[1729955129267,2.9688,168.6,168.55,2.9695]
[1729955130171,12.86234681,168.64,168.55,2.9695]
[1729955130172,2.969,168.59,168.55,2.9695]
[1729955130462,2.9688,168.6,168.55,2.9695]
[1729955130864,2.9688,168.6,168.56,2.9693]
[1729955131457,390.31447244,168.68,168.59,2.9688]
[1729955131458,387.30077526,168.68,168.59,2.9688]
[1729955131672,387.30077526,168.68,168.57,12.86234681]
[1729955131963,12.86234681,168.67,168.57,12.86234681]
[1729955132360,2.9684,168.62,168.58,2.969]
[1729955132768,2.9684,168.62,168.58,7.769]
[1729955132970,12.86234681,168.67,168.58,6.0834]
[1729955133579,2.9688,168.6,168.58,1.2834]
[1729955133869,4.78,168.65,168.55,17.64234681]
[1729955135073,12.86234681,168.62,168.53,12.86234681]
[1729955135867,12.86234681,168.62,168.52,4.78]
[1729955136066,12.86234681,168.62,168.53,12.86234681]
[1729955136271,12.86234681,168.62,168.52,4.78]
[1729955136272,4.78,168.63,168.55,12.86234681]
[1729955136476,12.86234681,168.64,168.51,1.2839]
[1729955136771,12.86234681,168.62,168.52,17.64234681]
[1729955137570,12.86234681,168.62,168.52,12.86234681]
[1729955137770,4.78,168.61,168.52,17.64234681]
[1729955138475,2.9693,168.57,168.53,2.9698]
[1729955139565,2.9693,168.57,168.54,2.9697]
[1729955141070,4.78,168.61,168.54,2.9697]
[1729955141071,2.9692,168.58,168.54,2.9697]
[1729955142278,4.78,168.61,168.55,2.9695]
[1729955142279,2.9689,168.59,168.55,2.9695]
[1729955142580,4.78,168.61,168.56,12.86234681]
[1729955142775,2.9686,168.61,168.57,2.9692]
[1729955142975,4.78,168.64,168.57,2.9692]
[1729955145108,17.64234681,168.64,168.55,4.78]
[1729955145410,2.9691,168.58,168.55,4.78]
[1729955145809,2.9691,168.58,168.55,7.7494]
[1729955146337,17.64234681,168.6,168.51,1.2839]
[1729955146514,12.86234681,168.57,168.51,1.2839]
[1729955146911,12.86234681,168.57,168.47,12.86234681]
[1729955147109,12.86234681,168.55,168.47,4.78]
[1729955147409,12.86234681,168.55,168.39,2.4734]
[1729955147410,2.9717,168.43,168.39,21.32904681]
[1729955147613,17.64234681,168.5,168.39,15.34334681]
[1729955147798,4.78,168.5,168.4,1.2057]
[1729955148003,2.971,168.47,168.41,12.86234681]
[1729955148200,4.78,168.5,168.41,12.86234681]
[1729955148804,2.9706,168.49,168.41,12.86234681]
[1729955149201,4.78,168.5,168.41,12.86234681]
[1729955149397,7.7505,168.5,168.44,2.9715]
[1729955150210,4.78,168.5,168.44,2.9715]
[1729955151417,7.7505,168.5,168.43,2.9716]
[1729955151611,17.64234681,168.5,168.4,1.2057]
[1729955151819,15.83334681,168.47,168.4,1.2057]
[1729955152022,12.86234681,168.47,168.4,1.2057]
[1729955152334,12.86234681,168.47,168.4,4.1778]
[1729955152515,12.86234681,168.47,168.4,1.2057]
[1729955154028,12.86234681,168.47,168.41,2.972]
[1729955154420,12.86234681,168.47,168.4,1.2057]
[1729955154615,17.64234681,168.5,168.41,12.86234681]
[1729955154955,17.64234681,168.5,168.4,1.2057]
[1729955154956,4.8,168.51,168.43,12.86234681]
[1729955155321,4.8,168.51,168.45,2.9712]
[1729955156538,4.8,168.51,168.43,12.86234681]
[1729955156919,4.8,168.53,168.43,17.66234681]
[1729955157134,4.8,168.53,168.49,2.9706]
[1729955157624,4.8,168.55,168.45,12.86234681]